fUST/lending_fUST_20250702
["ID","MTS","AMOUNT","RATE_DAILY","PERIOD"]
[369063197,1751448663994,-460.0,0.0002,2]
[369063198,1751448664004,-460.3,0.0002,2]
[369063199,1751448664015,-1387.48,0.0002,2]
[369063200,1751448664025,-680.46,0.0002,2]
[369063201,1751448664035,-151.0,0.0002,2]
[369063202,1751448664046,-1945.84,0.0002,2]
[369063203,1751448664056,-1561.58,0.0002,2]
[369063204,1751448664067,-793.44,0.0002,2]
[369063205,1751448664077,-6281.5,0.0002,2]
[369063206,1751448664086,-1905.09,0.0002,2]
[369063207,1751448664096,-156.053177,0.0002,2]
[369063208,1751448664105,-779.68,0.0002,2]
[369063209,1751448664115,-460.0,0.0002,2]
[369063210,1751448664124,-156.053177,0.0002,2]
[369063212,1751448664134,-486.38795,0.0002,2]
[369063213,1751448664143,-486.38795,0.0002,2]
[369063214,1751448664153,-1167.65847021,0.00020003,2]
[369063215,1751448664162,-552.0,0.0002001,2]
[369063216,1751448664172,-4854.0,0.00020172,2]
[369063217,1751448664182,-154.0,0.00020182,2]
[369063218,1751448664192,-154.0,0.00020182,2]
[369063219,1751448664201,-157.0,0.00020182,2]
[369063220,1751448664211,-154.0,0.00020182,2]
[369063221,1751448664221,-157.0,0.00020182,2]
[369063222,1751448664231,-154.0,0.00020182,2]
[369063223,1751448664242,-157.0,0.00020182,2]
[369063224,1751448664252,-143.22283478,0.00020182,2]
[369063225,1751448689685,168.268065,0.00027397,120]
[369063226,1751448739836,24900.0,0.00015433,2]
[369063227,1751449011586,150.32149087,0.0002512,120]
[369063228,1751449035162,288.7731259,0.00015394,2]
[369063230,1751449233096,476.11081,0.00013699,2]
[369063231,1751449406891,673.2171803,0.0001537,2]
[369063232,1751449440836,623.9,0.00027397,120]
[369063235,1751449748419,-163.75489393,0.00016338,2]
[369063236,1751449756390,-1436.22455021,0.00016338,2]
[369063237,1751449756414,-1200.0,0.00016366,2]
[369063238,1751449756435,-300.0,0.00016366,2]
[369063239,1751449756455,-300.0,0.00016367,2]
[369063240,1751449756475,-244.0,0.00016367,2]
[369063241,1751449756495,-300.0,0.00016367,2]
[369063242,1751449756530,-1200.0,0.00016367,2]
[369063243,1751449756553,-500.0,0.00016367,2]
[369063244,1751449756574,-500.0,0.00016367,2]
[369063245,1751449756596,-500.0,0.00016367,2]
[369063246,1751449756623,-500.0,0.00016367,2]
[369063247,1751449756644,-189.84299434,0.00016367,2]
[369063248,1751449756666,-500.0,0.00016367,2]
[369063249,1751449756687,-500.0,0.00016367,2]
[369063250,1751449756707,-500.0,0.00016367,2]
[369063251,1751449756730,-500.0,0.00016367,2]
[369063252,1751449756752,-402.73231253,0.00016367,2]
[369063253,1751449756773,-239.5,0.00016367,2]
[369063254,1751449756795,-500.0,0.00016367,2]
[369063255,1751449756816,-579.49840312,0.00016367,2]
[369063256,1751449756836,-500.0,0.00016367,2]
[369063257,1751449756859,-500.0,0.00016367,2]
[369063258,1751449756879,-526.0,0.00016367,2]
[369063259,1751449756901,-650.87467901,0.00016367,2]
[369063260,1751449756922,-342.6420815,0.00016367,2]
[369063261,1751449756942,-5107.57235422,0.00016368,2]
[369063262,1751449756972,-18561.69206744,0.00016368,2]
[369063272,1751449832532,-300.0,0.00016367,2]
[369063274,1751449832541,-160.0,0.00016427,2]
[369063276,1751449832552,-239.84945705,0.00016437,2]
[369063278,1751449832561,-455.61227531,0.00016437,2]
[369063280,1751449832570,-460.0,0.00016438,2]
[369063282,1751449832580,-463.30438671,0.00016438,2]
[369063284,1751449832590,-460.0,0.00016438,2]
[369063286,1751449832599,-444.05707808,0.00016438,2]
[369063288,1751449832608,-211.6603477,0.00016438,2]
[369063290,1751449832617,-460.0,0.00016438,2]
[369063292,1751449832627,-460.0,0.00016438,2]
[369063294,1751449832636,-34.87265486,0.00016438,2]
[369063296,1751449832648,-425.12734514,0.00016438,2]
[369063298,1751449832657,-460.0,0.00016438,2]
[369063301,1751449832667,-460.0,0.00016438,2]
[369063302,1751449832677,-460.0,0.00016438,2]
[369063304,1751449832686,-460.0,0.00016438,2]
[369063307,1751449832695,-460.0,0.00016438,2]
[369063308,1751449832705,-460.0,0.00016438,2]
[369063310,1751449832714,-460.0,0.00016438,2]
[369063311,1751449832723,-460.0,0.00016438,2]
[369063312,1751449832732,-460.0,0.00016438,2]
[369063313,1751449832741,-460.0,0.00016438,2]
[369063314,1751449832751,-460.0,0.00016438,2]
[369063315,1751449832760,-460.0,0.00016438,2]
[369063316,1751449832769,-460.0,0.00016438,2]
[369063317,1751449832779,-460.0,0.00016438,2]
[369063318,1751449832788,-479.10899522,0.00016438,2]
[369063319,1751449832797,-460.0,0.00016438,2]
[369063320,1751449832807,-460.0,0.00016438,2]
[369063321,1751449832816,-460.0,0.00016438,2]
[369063322,1751449832825,-460.0,0.00016438,2]
[369063323,1751449832834,-460.0,0.00016438,2]
[369063324,1751449832843,-460.0,0.00016438,2]
[369063325,1751449832853,-460.0,0.00016438,2]
[369063326,1751449832862,-460.0,0.00016438,2]
[369063327,1751449832871,-460.0,0.00016438,2]
[369063328,1751449832881,-550.21841317,0.00016438,2]
[369063329,1751449832890,-460.0,0.00016438,2]
[369063330,1751449832900,-460.0,0.00016438,2]
[369063331,1751449832909,-464.73919868,0.00016438,2]
[369063332,1751449832918,-460.0,0.00016438,2]
[369063335,1751449833128,-460.0,0.00016438,2]
[369063337,1751449833139,-580.10412807,0.00016438,2]
[369063339,1751449833149,-463.82084155,0.00016438,2]
[369063341,1751449833160,-460.0,0.00016438,2]
[369063342,1751449833170,-460.0,0.00016438,2]
[369063343,1751449833180,-472.14063789,0.00016438,2]
[369063344,1751449833192,-460.0,0.00016438,2]
[369063345,1751449833202,-500.0,0.00016438,2]
[369063346,1751449833213,-460.0,0.00016438,2]
[369063347,1751449833223,-460.0,0.00016438,2]
[369063348,1751449833234,-460.0,0.00016438,2]
[369063349,1751449833244,-460.0,0.00016438,2]
[369063350,1751449833253,-460.0,0.00016438,2]
[369063351,1751449833263,-460.0,0.00016438,2]
[369063352,1751449833273,-460.0,0.00016438,2]
[369063353,1751449833283,-460.0,0.00016438,2]
[369063354,1751449833293,-460.0,0.00016438,2]
[369063355,1751449833303,-462.16125666,0.00016438,2]
[369063356,1751449833312,-460.0,0.00016438,2]
[369063357,1751449833322,-460.0,0.00016438,2]
[369063358,1751449833332,-460.0,0.00016438,2]
[369063359,1751449833341,-460.0,0.00016438,2]
[369063360,1751449833351,-557.98,0.00016438,2]
[369063361,1751449833361,-460.0,0.00016438,2]
[369063362,1751449833370,-460.0,0.00016438,2]
[369063363,1751449833379,-460.0,0.00016438,2]
[369063364,1751449833389,-460.0,0.00016438,2]
[369063365,1751449833400,-460.0,0.00016438,2]
[369063366,1751449833410,-460.0,0.00016438,2]
[369063367,1751449833420,-293.31805144,0.00016438,2]
[369063368,1751449833430,-460.0,0.00016438,2]
[369063369,1751449833440,-460.0,0.00016438,2]
[369063370,1751449833449,-460.0,0.00016438,2]
[369063371,1751449833458,-460.0,0.00016438,2]
[369063372,1751449833468,-458.83900975,0.00016438,2]
[369063373,1751449833477,-460.0,0.00016438,2]
[369063374,1751449833489,-460.0,0.00016438,2]
[369063375,1751449833498,-460.0,0.00016438,2]
[369063376,1751449833509,-460.0,0.00016438,2]
[369063377,1751449833518,-460.0,0.00016438,2]
[369063378,1751449833527,-460.0,0.00016438,2]
[369063379,1751449833537,-460.0,0.00016438,2]
[369063380,1751449833546,-2352.68,0.00016438,2]
[369063381,1751449833556,-712.79,0.00016438,2]
[369063382,1751449833565,-928.24,0.00016438,2]
[369063383,1751449833575,-213.49833596,0.00016438,2]
[369063384,1751449833584,-460.0,0.00016438,2]
[369063385,1751449833594,-460.0,0.00016438,2]
[369063386,1751449833603,-460.0,0.00016438,2]
[369063387,1751449833614,-460.0,0.00016438,2]
[369063388,1751449833630,-460.0,0.00016438,2]
[369063389,1751449833640,-460.0,0.00016438,2]
[369063390,1751449833650,-460.0,0.00016438,2]
[369063391,1751449833660,-460.0,0.00016438,2]
[369063392,1751449833669,-460.0,0.00016438,2]
[369063393,1751449833679,-460.0,0.00016438,2]
[369063394,1751449833688,-460.0,0.00016438,2]
[369063395,1751449833698,-161.47060421,0.00016438,2]
[369063396,1751449833707,-1705.09,0.00016438,2]
[369063397,1751449833716,-460.0,0.00016438,2]
[369063398,1751449833726,-460.0,0.00016438,2]
[369063399,1751449833735,-460.0,0.00016438,2]
[369063400,1751449833745,-460.0,0.00016438,2]
[369063401,1751449833756,-1069.81,0.00016438,2]
[369063402,1751449833765,-460.0,0.00016438,2]
[369063403,1751449833775,-472.63,0.00016438,2]
[369063404,1751449833784,-460.0,0.00016438,2]
[369063405,1751449833794,-685.94,0.00016438,2]
[369063406,1751449833804,-460.0,0.00016438,2]
[369063407,1751449833813,-460.0,0.00016438,2]
[369063408,1751449833823,-463.45776796,0.00016438,2]
[369063409,1751449833832,-460.0,0.00016438,2]
[369063410,1751449833842,-460.0,0.00016438,2]
[369063411,1751449833852,-460.0,0.00016438,2]
[369063412,1751449833861,-460.0,0.00016438,2]
[369063413,1751449833870,-460.0,0.00016438,2]
[369063414,1751449833880,-460.0,0.00016438,2]
[369063415,1751449833890,-460.0,0.00016438,2]
[369063416,1751449833900,-460.0,0.00016438,2]
[369063417,1751449833909,-2330.79,0.00016438,2]
[369063418,1751449833919,-460.0,0.00016438,2]
[369063419,1751449833929,-460.0,0.00016438,2]
[369063420,1751449833939,-460.0,0.00016438,2]
[369063421,1751449833948,-1540.55,0.00016438,2]
[369063422,1751449833959,-460.0,0.00016438,2]
[369063423,1751449833969,-460.0,0.00016438,2]
[369063424,1751449833978,-460.0,0.00016438,2]
[369063425,1751449833987,-460.0,0.00016438,2]
[369063426,1751449833997,-460.0,0.00016438,2]
[369063427,1751449834007,-460.0,0.00016438,2]
[369063428,1751449834019,-1412.11,0.00016438,2]
[369063429,1751449834029,-460.0,0.00016438,2]
[369063430,1751449834039,-460.0,0.00016438,2]
[369063431,1751449834048,-588.87445847,0.00016438,2]
[369063432,1751449834105,-488.48554153,0.00016438,2]
[369063433,1751449834115,-460.0,0.00016438,2]
[369063434,1751449834130,-460.0,0.00016438,2]
[369063435,1751449834167,-1821.42,0.00016438,2]
[369063436,1751449834177,-460.0,0.00016438,2]
[369063437,1751449834195,-460.0,0.00016438,2]
[369063438,1751449834208,-700.33,0.00016438,2]
[369063439,1751449834218,-460.0,0.00016438,2]
[369063440,1751449834229,-460.0,0.00016438,2]
[369063441,1751449834240,-2485.1,0.00016438,2]
[369063442,1751449834249,-460.0,0.00016438,2]
[369063443,1751449834260,-509.20195955,0.00016438,2]
[369063444,1751449834269,-460.0,0.00016438,2]
[369063445,1751449834279,-460.0,0.00016438,2]
[369063446,1751449834289,-460.0,0.00016438,2]
[369063447,1751449834299,-460.0,0.00016438,2]
[369063448,1751449834309,-460.0,0.00016438,2]
[369063449,1751449834318,-460.0,0.00016438,2]
[369063450,1751449834328,-460.0,0.00016438,2]
[369063451,1751449834337,-460.0,0.00016438,2]
[369063452,1751449834347,-460.0,0.00016438,2]
[369063453,1751449834357,-789.89,0.00016438,2]
[369063454,1751449834367,-460.0,0.00016438,2]
[369063455,1751449834377,-869.54,0.00016438,2]
[369063456,1751449834387,-460.0,0.00016438,2]
[369063457,1751449834396,-3238.77659906,0.00016438,2]
[369063458,1751449834669,222.55280671,0.00027397,120]
[369063464,1751449838535,-347.70340094,0.00016438,2]
[369063465,1751449838545,-460.0,0.00016438,2]
[369063466,1751449838555,-460.0,0.00016438,2]
[369063467,1751449838566,-825.92216658,0.00016438,2]
[369063468,1751449838577,-1884.125,0.00016438,2]
[369063474,1751449840789,-872.59283342,0.00016438,2]
[369063475,1751449840799,-460.0,0.00016438,2]
[369063476,1751449840809,-460.0,0.00016438,2]
[369063477,1751449840819,-460.0,0.00016438,2]
[369063478,1751449840828,-460.0,0.00016438,2]
[369063479,1751449840838,-676.14,0.00016438,2]
[369063480,1751449840847,-460.0,0.00016438,2]
[369063481,1751449840857,-425.15402257,0.00016438,2]
[369063482,1751449840867,-460.0,0.00016438,2]
[369063483,1751449840876,-1092.33,0.00016438,2]
[369063484,1751449840885,-460.0,0.00016438,2]
[369063485,1751449840895,-460.0,0.00016438,2]
[369063486,1751449840904,-460.0,0.00016438,2]
[369063487,1751449840914,-460.0,0.00016438,2]
[369063488,1751449840923,-460.0,0.00016438,2]
[369063489,1751449840932,-460.0,0.00016438,2]
[369063490,1751449840941,-613.02,0.00016438,2]
[369063491,1751449840951,-460.0,0.00016438,2]
[369063492,1751449840961,-460.0,0.00016438,2]
[369063493,1751449840970,-460.0,0.00016438,2]
[369063494,1751449840979,-460.0,0.00016438,2]
[369063495,1751449840989,-541.07524802,0.00016438,2]
[369063496,1751449841001,-416.40475198,0.00016438,2]
[369063497,1751449841010,-460.0,0.00016438,2]
[369063498,1751449841019,-460.0,0.00016438,2]
[369063499,1751449841028,-606.4,0.00016438,2]
[369063500,1751449841037,-326.61536195,0.00016438,2]
[369063503,1751449843615,-133.38463805,0.00016438,2]
[369063504,1751449843625,-960.43,0.00016438,2]
[369063505,1751449843634,-460.0,0.00016438,2]
[369063506,1751449843644,-362.78903941,0.00016438,2]
[369063510,1751449843723,-421.83972121,0.00016438,2]
[369063511,1751449843735,-266.46123938,0.00016438,2]
[369063512,1751449843744,-651.5053311,0.00016438,2]
[369063531,1751449899419,-184.4853505,0.00016437,2]
[369063532,1751449941219,2148.48203926,0.000161,2]
[369063533,1751450018312,-211.35951182,0.00016337,2]
[369063534,1751450101574,24900.0,0.00015394,2]
[369063535,1751450154577,168.268065,0.00027397,120]
[369063536,1751450239662,463.782918,0.00013699,2]
[369063538,1751450309873,5053.53569107,0.00014,2]
[369063539,1751450419144,2369.19,0.000161,2]
[369063540,1751450682434,196.1760249,0.00015476,2]
[369063541,1751450755225,-151.6650304,0.00016329,2]
[369063542,1751450756857,-69.4813519,0.00016329,2]
[369063543,1751450756880,-96.14757761,0.0001633,2]
[369063544,1751450827181,-157.68759031,0.00016237,2]
[369063545,1751450827204,-157.68759028,0.0001626,2]
[369063546,1751450827227,-24.76764875,0.00016283,2]
[369063547,1751450946847,-228.06353244,0.0001617,2]
[369063549,1751450952674,-300.0,0.0001617,2]
[369063550,1751450956034,-155.65973445,0.0001617,2]
[369063568,1751451032104,-1367.42544553,0.0001617,2]
[369063569,1751451032113,-224.14756105,0.00016237,2]
[369063570,1751451032123,-201.82108929,0.00016337,2]
[369063571,1751451032133,-224.14756104,0.00016338,2]
[369063572,1751451032142,-436.63310243,0.00016338,2]
[369063573,1751451032152,-160.0,0.00016366,2]
[369063574,1751451032161,-300.0,0.00016426,2]
[369063575,1751451032171,-300.0,0.00016426,2]
[369063576,1751451032180,-260.0,0.00016426,2]
[369063577,1751451032190,-270.0,0.00016426,2]
[369063578,1751451032199,-300.0,0.00016426,2]
[369063579,1751451032209,-1200.0,0.00016426,2]
[369063580,1751451032218,-1134.66217383,0.00016427,2]
[369063581,1751451032249,-19894.92326931,0.00016427,2]
[369063582,1751451032260,-1271.057013,0.00016427,2]
[369063583,1751451032271,-500.0,0.00016427,2]
[369063584,1751451032280,-500.0,0.00016427,2]
[369063585,1751451032289,-124.94606159,0.00016427,2]
[369063586,1751451032300,-62.81427112,0.00016427,2]
[369063587,1751451032310,-471.0,0.00016428,2]
[369063588,1751451032319,-500.0,0.00016438,2]
[369063589,1751451032328,-500.0,0.00016438,2]
[369063590,1751451032338,-351.38162817,0.00016438,2]
[369063591,1751451032347,-500.0,0.00016438,2]
[369063592,1751451032356,-500.0,0.00016438,2]
[369063593,1751451032365,-500.0,0.00016438,2]
[369063594,1751451032375,-500.0,0.00016438,2]
[369063595,1751451032385,-460.0,0.00016438,2]
[369063596,1751451032394,-460.0,0.00016438,2]
[369063597,1751451032404,-460.0,0.00016438,2]
[369063598,1751451032414,-460.0,0.00016438,2]
[369063599,1751451032423,-460.0,0.00016438,2]
[369063600,1751451032433,-224.81,0.00016438,2]
[369063601,1751451032443,-193.98841063,0.00016438,2]
[369063602,1751451032452,-460.0,0.00016438,2]
[369063603,1751451032462,-460.0,0.00016438,2]
[369063604,1751451032472,-460.0,0.00016438,2]
[369063605,1751451032482,-293.32673143,0.00016438,2]
[369063606,1751451032491,-460.0,0.00016438,2]
[369063607,1751451032501,-460.0,0.00016438,2]
[369063608,1751451032511,-460.0,0.00016438,2]
[369063609,1751451032520,-460.0,0.00016438,2]
[369063610,1751451032529,-460.0,0.00016438,2]
[369063611,1751451032539,-460.0,0.00016438,2]
[369063612,1751451032549,-460.0,0.00016438,2]
[369063613,1751451032558,-460.0,0.00016438,2]
[369063614,1751451032568,-729.51,0.00016438,2]
[369063615,1751451032578,-362.67881058,0.00016438,2]
[369063616,1751451032791,-97.32118942,0.00016438,2]
[369063617,1751451032801,-460.0,0.00016438,2]
[369063618,1751451032810,-460.0,0.00016438,2]
[369063619,1751451032820,-460.0,0.00016438,2]
[369063620,1751451032829,-460.0,0.00016438,2]
[369063621,1751451032839,-460.0,0.00016438,2]
[369063622,1751451032849,-460.0,0.00016438,2]
[369063623,1751451032858,-460.0,0.00016438,2]
[369063624,1751451032867,-460.0,0.00016438,2]
[369063625,1751451032877,-157.23029256,0.00016438,2]
[369063628,1751451037673,-150.0,0.00016338,2]
[369063629,1751451037682,-500.0,0.00016426,2]
[369063630,1751451037693,-500.0,0.00016426,2]
[369063631,1751451037706,-231.05537812,0.00016426,2]
[369063632,1751451037715,-500.0,0.00016426,2]
[369063633,1751451037724,-271.74462188,0.00016426,2]
[369063634,1751451037779,-297.24139786,0.00016426,2]
[369063635,1751451037789,-500.0,0.00016426,2]
[369063636,1751451037799,-500.0,0.00016426,2]
[369063637,1751451037809,-500.0,0.00016426,2]
[369063638,1751451037819,-500.0,0.00016426,2]
[369063639,1751451037827,-500.0,0.00016426,2]
[369063640,1751451037837,-490.27323126,0.00016426,2]
[369063641,1751451037846,-315.79970744,0.00016438,2]
[369063642,1751451037856,-460.0,0.00016438,2]
[369063643,1751451037865,-460.0,0.00016438,2]
[369063644,1751451037875,-460.0,0.00016438,2]
[369063645,1751451037884,-460.0,0.00016438,2]
[369063646,1751451037894,-460.0,0.00016438,2]
[369063647,1751451037903,-460.0,0.00016438,2]
[369063648,1751451037912,-460.0,0.00016438,2]
[369063649,1751451037922,-460.0,0.00016438,2]
[369063650,1751451037932,-466.09110058,0.00016438,2]
[369063651,1751451037941,-460.0,0.00016438,2]
[369063652,1751451037951,-460.0,0.00016438,2]
[369063653,1751451037960,-460.0,0.00016438,2]
[369063654,1751451037969,-460.0,0.00016438,2]
[369063655,1751451037979,-460.0,0.00016438,2]
[369063656,1751451037988,-460.0,0.00016438,2]
[369063657,1751451037998,-460.0,0.00016438,2]
[369063658,1751451038007,-251.5407216,0.00016438,2]
[369063659,1751451038016,-460.0,0.00016438,2]
[369063660,1751451038025,-460.0,0.00016438,2]
[369063661,1751451038035,-460.0,0.00016438,2]
[369063662,1751451038044,-532.24,0.00016438,2]
[369063663,1751451038054,-460.0,0.00016438,2]
[369063664,1751451038067,-486.47645779,0.00016438,2]
[369063665,1751451038082,-530.13,0.00016438,2]
[369063666,1751451038095,-460.0,0.00016438,2]
[369063667,1751451038108,-460.0,0.00016438,2]
[369063668,1751451038121,-460.0,0.00016438,2]
[369063669,1751451038134,-460.0,0.00016438,2]
[369063670,1751451038146,-460.0,0.00016438,2]
[369063671,1751451038157,-460.0,0.00016438,2]
[369063672,1751451038168,-464.89,0.00016438,2]
[369063673,1751451038180,-460.0,0.00016438,2]
[369063674,1751451038191,-585.64154796,0.00016438,2]
[369063675,1751451038203,-460.0,0.00016438,2]
[369063676,1751451038214,-460.0,0.00016438,2]
[369063677,1751451038226,-460.0,0.00016438,2]
[369063678,1751451038240,-460.0,0.00016438,2]
[369063679,1751451038252,-460.0,0.00016438,2]
[369063680,1751451038264,-460.0,0.00016438,2]
[369063681,1751451038276,-460.0,0.00016438,2]
[369063682,1751451038287,-151.0,0.00016438,2]
[369063683,1751451038299,-455.94,0.00016438,2]
[369063684,1751451038310,-460.0,0.00016438,2]
[369063685,1751451038323,-460.0,0.00016438,2]
[369063686,1751451038334,-460.0,0.00016438,2]
[369063687,1751451038345,-460.0,0.00016438,2]
[369063688,1751451038356,-460.0,0.00016438,2]
[369063689,1751451038368,-420.67987744,0.00016438,2]
[369063690,1751451038380,-460.0,0.00016438,2]
[369063691,1751451038391,-460.0,0.00016438,2]
[369063692,1751451038402,-2899.66,0.00016438,2]
[369063693,1751451038413,-464.4007227,0.00016438,2]
[369063694,1751451038426,-460.0,0.00016438,2]
[369063695,1751451038438,-460.0,0.00016438,2]
[369063696,1751451038450,-460.0,0.00016438,2]
[369063697,1751451038461,-460.0,0.00016438,2]
[369063698,1751451038473,-460.0,0.00016438,2]
[369063699,1751451038483,-460.0,0.00016438,2]
[369063700,1751451038493,-460.0,0.00016438,2]
[369063701,1751451038503,-480.14,0.00016438,2]
[369063702,1751451038515,-460.09748724,0.00016438,2]
[369063703,1751451038525,-460.0,0.00016438,2]
[369063704,1751451038536,-460.0,0.00016438,2]
[369063705,1751451038547,-1185.44,0.00016438,2]
[369063706,1751451038559,-460.0,0.00016438,2]
[369063707,1751451038569,-460.0,0.00016438,2]
[369063708,1751451038582,-493.64,0.00016438,2]
[369063709,1751451038594,-460.0,0.00016438,2]
[369063710,1751451038605,-467.60270902,0.00016438,2]
[369063711,1751451038616,-460.0,0.00016438,2]
[369063712,1751451038629,-460.0,0.00016438,2]
[369063713,1751451038641,-460.0,0.00016438,2]
[369063714,1751451038653,-579.86,0.00016438,2]
[369063715,1751451038664,-460.0,0.00016438,2]
[369063716,1751451038676,-460.0,0.00016438,2]
[369063717,1751451038688,-2082.76,0.00016438,2]
[369063718,1751451038702,-460.0,0.00016438,2]
[369063719,1751451038712,-460.0,0.00016438,2]
[369063720,1751451038722,-460.0,0.00016438,2]
[369063721,1751451038733,-460.0,0.00016438,2]
[369063722,1751451038744,-1826.98,0.00016438,2]
[369063723,1751451038755,-550.87,0.00016438,2]
[369063724,1751451038767,-460.0,0.00016438,2]
[369063725,1751451038780,-358.00614738,0.00016438,2]
[369063726,1751451038793,-460.0,0.00016438,2]
[369063727,1751451038805,-460.0,0.00016438,2]
[369063728,1751451038816,-460.0,0.00016438,2]
[369063729,1751451038826,-2622.14,0.00016438,2]
[369063730,1751451038836,-1122.72,0.00016438,2]
[369063731,1751451038847,-460.0,0.00016438,2]
[369063732,1751451038858,-460.0,0.00016438,2]
[369063733,1751451038869,-460.0,0.00016438,2]
[369063734,1751451038881,-460.0,0.00016438,2]
[369063735,1751451038892,-460.0,0.00016438,2]
[369063736,1751451038903,-573.86,0.00016438,2]
[369063737,1751451038913,-460.0,0.00016438,2]
[369063738,1751451038923,-460.0,0.00016438,2]
[369063739,1751451038932,-487.58498581,0.00016438,2]
[369063740,1751451038942,-460.0,0.00016438,2]
[369063741,1751451038954,-460.0,0.00016438,2]
[369063742,1751451038965,-1771.2,0.00016438,2]
[369063743,1751451038975,-477.3,0.00016438,2]
[369063744,1751451038985,-463.88,0.00016438,2]
[369063745,1751451038996,-460.0,0.00016438,2]
[369063746,1751451039006,-460.0,0.00016438,2]
[369063747,1751451039016,-849.66,0.00016438,2]
[369063748,1751451039029,-460.0,0.00016438,2]
[369063749,1751451039039,-2110.0,0.00016438,2]
[369063750,1751451039050,-460.0,0.00016438,2]
[369063751,1751451039060,-460.0,0.00016438,2]
[369063752,1751451039071,-460.0,0.00016438,2]
[369063753,1751451039082,-460.0,0.00016438,2]
[369063754,1751451039093,-460.0,0.00016438,2]
[369063755,1751451039104,-461.1,0.00016438,2]
[369063756,1751451039114,-460.0,0.00016438,2]
[369063757,1751451039125,-460.0,0.00016438,2]
[369063758,1751451039135,-460.0,0.00016438,2]
[369063759,1751451039146,-460.0,0.00016438,2]
[369063760,1751451039159,-460.0,0.00016438,2]
[369063761,1751451039169,-460.0,0.00016438,2]
[369063762,1751451039180,-476.74,0.00016438,2]
[369063763,1751451039190,-4213.49,0.00016438,2]
[369063764,1751451039200,-2839.97,0.00016438,2]
[369063765,1751451039211,-460.0,0.00016438,2]
[369063766,1751451039222,-1040.11,0.00016438,2]
[369063767,1751451039232,-460.0,0.00016438,2]
[369063768,1751451039243,-460.0,0.00016438,2]
[369063769,1751451039253,-460.0,0.00016438,2]
[369063770,1751451039264,-647.97,0.00016438,2]
[369063771,1751451039275,-431.79363285,0.00016438,2]
[369063772,1751451039285,-1313.11,0.00016438,2]
[369063773,1751451039295,-460.0,0.00016438,2]
[369063774,1751451039306,-910.93,0.00016438,2]
[369063775,1751451039316,-460.0,0.00016438,2]
[369063776,1751451039327,-460.0,0.00016438,2]
[369063777,1751451039338,-460.0,0.00016438,2]
[369063778,1751451039350,-726.8,0.00016438,2]
[369063779,1751451039360,-1223.56,0.00016438,2]
[369063780,1751451039371,-460.0,0.00016438,2]
[369063781,1751451039381,-460.0,0.00016438,2]
[369063782,1751451039391,-460.0,0.00016438,2]
[369063783,1751451039402,-460.0,0.00016438,2]
[369063784,1751451039412,-571.56261503,0.00016438,2]
[369063785,1751451039423,-460.0,0.00016438,2]
[369063786,1751451039433,-460.0,0.00016438,2]
[369063787,1751451039443,-642.66,0.00016438,2]